[Event "*** Titled Tuesday Blitz"]
[Site "Chess.com"]
[Date "2021.04.06"]
[Round "5"]
[White "VitaRasik"]
[Black "The_filthy"]
[Result "1-0"]
[WhiteElo "2602"]
[BlackElo "2375"]
[TimeControl "180+1"]
[EndTime "10:57:24 PDT"]
[Termination "VitaRasik won by checkmate"]

1. e4 {[%clk 0:03:00.9]} 1... e6 {[%clk 0:02:59]} 2. d3 {[%clk 0:02:59.6]} 2...
c5 {[%clk 0:02:58.7]} 3. Nf3 {[%clk 0:02:58.1]} 3... Nc6 {[%clk 0:02:59.1]} 4.
g3 {[%clk 0:02:57.1]} 4... d6 {[%clk 0:02:58.3]} 5. Bg2 {[%clk 0:02:56.8]} 5...
g6 {[%clk 0:02:58.8]} 6. d4 {[%clk 0:02:47.2]} 6... cxd4 {[%clk 0:02:54.1]} 7.
Nxd4 {[%clk 0:02:47.2]} 7... e5 {[%clk 0:02:36.8]} 8. Nb5 {[%clk 0:02:41.4]}
8... a6 {[%clk 0:02:35.5]} 9. N5c3 {[%clk 0:02:41]} 9... Bg7 {[%clk 0:02:33.8]}
10. Nd5 {[%clk 0:02:39.9]} 10... Nge7 {[%clk 0:02:33.7]} 11. Nbc3 {[%clk
0:02:38.8]} 11... O-O {[%clk 0:02:32.1]} 12. Be3 {[%clk 0:02:38.7]} 12... b5
{[%clk 0:02:26.4]} 13. a3 {[%clk 0:02:23.8]} 13... Be6 {[%clk 0:02:22.8]} 14.
O-O {[%clk 0:02:22.4]} 14... Rc8 {[%clk 0:02:07.9]} 15. a4 {[%clk 0:02:13.7]}
15... b4 {[%clk 0:02:04.7]} 16. Nxe7+ {[%clk 0:02:09.1]} 16... Nxe7 {[%clk
0:01:56.8]} 17. Ne2 {[%clk 0:02:02.2]} 17... d5 {[%clk 0:01:44.4]} 18. a5 {[%clk
0:01:54.6]} 18... d4 {[%clk 0:01:39.8]} 19. Bd2 {[%clk 0:01:53.4]} 19... Nc6
{[%clk 0:01:29.7]} 20. f4 {[%clk 0:01:50.1]} 20... Bc4 {[%clk 0:01:23.4]} 21.
Rf2 {[%clk 0:01:35.1]} 21... Re8 {[%clk 0:01:12.3]} 22. b3 {[%clk 0:01:33.9]}
22... Bb5 {[%clk 0:01:09.2]} 23. f5 {[%clk 0:01:19.5]} 23... Rc7 {[%clk
0:00:48.9]} 24. Nc1 {[%clk 0:01:17.8]} 24... d3 {[%clk 0:00:41.1]} 25. Nxd3
{[%clk 0:01:11.6]} 25... Bxd3 {[%clk 0:00:40.7]} 26. cxd3 {[%clk 0:01:11.8]}
26... Qxd3 {[%clk 0:00:38.1]} 27. Be1 {[%clk 0:01:10.5]} 27... Rd8 {[%clk
0:00:31.8]} 28. Qxd3 {[%clk 0:01:02.5]} 28... Rxd3 {[%clk 0:00:32.7]} 29. Rc2
{[%clk 0:01:01.3]} 29... Rdd7 {[%clk 0:00:28.3]} 30. fxg6 {[%clk 0:00:45.3]}
30... Nd4 {[%clk 0:00:24.2]} 31. gxf7+ {[%clk 0:00:42.2]} 31... Kxf7 {[%clk
0:00:24.1]} 32. Rf2+ {[%clk 0:00:37.5]} 32... Kg6 {[%clk 0:00:23.3]} 33. Bxb4
{[%clk 0:00:36.7]} 33... Nc2 {[%clk 0:00:21.2]} 34. Ra4 {[%clk 0:00:29.6]} 34...
Rd1+ {[%clk 0:00:17.2]} 35. Rf1 {[%clk 0:00:29.5]} 35... Rxf1+ {[%clk
0:00:14.8]} 36. Bxf1 {[%clk 0:00:29.6]} 36... Nxb4 {[%clk 0:00:13.2]} 37. Rxb4
{[%clk 0:00:29]} 37... Rc1 {[%clk 0:00:13.1]} 38. Rb6+ {[%clk 0:00:27.2]} 38...
Kh5 {[%clk 0:00:12.5]} 39. Kf2 {[%clk 0:00:25.8]} 39... Bh6 {[%clk 0:00:12.4]}
40. Be2+ {[%clk 0:00:25.7]} 40... Kg5 {[%clk 0:00:08.6]} 41. h4# {[%clk
0:00:25.9]} 1-0

[Event "*** Titled Tuesday Blitz"]
[Site "Chess.com"]
[Date "2021.04.06"]
[Round "5"]
[White "MPGM"]
[Black "volkanyirik"]
[Result "0-1"]
[WhiteElo "2561"]
[BlackElo "2429"]
[TimeControl "180+1"]
[EndTime "10:57:24 PDT"]
[Termination "volkanyirik won on time"]

1. d4 {[%clk 0:03:00.9]} 1... Nf6 {[%clk 0:02:59.9]} 2. Nf3 {[%clk 0:02:59.1]}
2... g6 {[%clk 0:02:59.8]} 3. h4 {[%clk 0:02:54.4]} 3... h5 {[%clk 0:02:58.7]}
4. Nc3 {[%clk 0:02:51.9]} 4... Bg7 {[%clk 0:02:59.2]} 5. e4 {[%clk 0:02:49.7]}
5... c5 {[%clk 0:02:59.2]} 6. dxc5 {[%clk 0:02:40]} 6... Qa5 {[%clk 0:02:58.3]}
7. Bd3 {[%clk 0:02:13.7]} 7... Qxc5 {[%clk 0:02:55.9]} 8. Be3 {[%clk 0:02:09.9]}
8... Qb4 {[%clk 0:02:53.2]} 9. a3 {[%clk 0:02:01.6]} 9... Qa5 {[%clk 0:02:50.6]}
10. b4 {[%clk 0:01:53.3]} 10... Qc7 {[%clk 0:02:49.2]} 11. Nb5 {[%clk
0:01:49.9]} 11... Qd8 {[%clk 0:02:48.3]} 12. Bxa7 {[%clk 0:01:36.3]} 12... Nc6
{[%clk 0:02:31.1]} 13. Be3 {[%clk 0:01:32.1]} 13... Ng4 {[%clk 0:02:27.8]} 14.
Bf4 {[%clk 0:01:26.6]} 14... d6 {[%clk 0:02:15.7]} 15. O-O {[%clk 0:01:22.7]}
15... Bxa1 {[%clk 0:02:11.9]} 16. Qxa1 {[%clk 0:01:23.6]} 16... O-O {[%clk
0:02:12.2]} 17. Bg5 {[%clk 0:00:49.1]} 17... Nxb4 {[%clk 0:02:00.4]} 18. Bc4
{[%clk 0:00:29.2]} 18... Nc6 {[%clk 0:01:44.8]} 19. Nfd4 {[%clk 0:00:17.8]}
19... Nce5 {[%clk 0:01:36.8]} 20. Bb3 {[%clk 0:00:12.6]} 20... Kh7 {[%clk
0:01:20]} 21. f3 {[%clk 0:00:11.5]} 21... Nf6 {[%clk 0:01:19.8]} 22. f4 {[%clk
0:00:09.2]} 22... Neg4 {[%clk 0:01:19.4]} 23. f5 {[%clk 0:00:09.2]} 23... Nxe4
{[%clk 0:01:06.4]} 24. Qe1 {[%clk 0:00:05.3]} 24... d5 {[%clk 0:01:03]} 25. c4
{[%clk 0:00:04.4]} 25... f6 {[%clk 0:00:55.2]} 26. cxd5 {[%clk 0:00:03.8]} 26...
Nd6 {[%clk 0:00:27.1]} 27. fxg6+ {[%clk 0:00:03.3]} 27... Kg7 {[%clk 0:00:26.1]}
28. Bc1 {[%clk 0:00:02.4]} 28... Nxb5 {[%clk 0:00:24.6]} 29. Qd2 {[%clk
0:00:01.6]} 29... Rh8 {[%clk 0:00:21.5]} 30. Nxb5 {[%clk 0:00:01.5]} 30... Qb6+
{[%clk 0:00:21.1]} 31. Nd4 {[%clk 0:00:01.5]} 31... Rxa3 {[%clk 0:00:19.2]} 0-1

[Event "*** Titled Tuesday Blitz"]
[Site "Chess.com"]
[Date "2021.04.06"]
[Round "5"]
[White "TosicSrecko"]
[Black "zajka-molotok"]
[Result "0-1"]
[WhiteElo "2320"]
[BlackElo "2525"]
[TimeControl "180+1"]
[EndTime "10:57:25 PDT"]
[Termination "zajka-molotok won by resignation"]

1. d4 {[%clk 0:03:00.9]} 1... d6 {[%clk 0:02:26.2]} 2. e4 {[%clk 0:02:59.5]}
2... Nf6 {[%clk 0:02:25.1]} 3. Nc3 {[%clk 0:02:59.4]} 3... e5 {[%clk 0:02:24.3]}
4. Nf3 {[%clk 0:02:58.9]} 4... Nbd7 {[%clk 0:02:23.7]} 5. Bc4 {[%clk 0:02:57.7]}
5... Be7 {[%clk 0:02:23.3]} 6. O-O {[%clk 0:02:55]} 6... O-O {[%clk 0:02:22.5]}
7. Qe2 {[%clk 0:02:54.1]} 7... c6 {[%clk 0:02:19.9]} 8. Rd1 {[%clk 0:02:54.5]}
8... b5 {[%clk 0:02:16.2]} 9. dxe5 {[%clk 0:02:54.6]} 9... dxe5 {[%clk 0:02:08]}
10. Nxe5 {[%clk 0:02:54.3]} 10... bxc4 {[%clk 0:02:07.2]} 11. Nxc6 {[%clk
0:02:54.4]} 11... Qe8 {[%clk 0:02:06.9]} 12. e5 {[%clk 0:02:53.3]} 12... Bc5
{[%clk 0:01:39.1]} 13. exf6 {[%clk 0:02:40]} 13... Qxe2 {[%clk 0:01:38.2]} 14.
Nxe2 {[%clk 0:02:40.8]} 14... Nxf6 {[%clk 0:01:37.9]} 15. Be3 {[%clk 0:02:11.3]}
15... Bxe3 {[%clk 0:01:34.8]} 16. fxe3 {[%clk 0:02:08.8]} 16... Re8 {[%clk
0:01:31.4]} 17. Nc3 {[%clk 0:01:53.2]} 17... Rxe3 {[%clk 0:01:23.4]} 18. Rd4
{[%clk 0:01:38.4]} 18... Bb7 {[%clk 0:01:05]} 19. Na5 {[%clk 0:01:30.4]} 19...
Ba6 {[%clk 0:00:59.9]} 20. Rd6 {[%clk 0:01:25]} 20... Re6 {[%clk 0:00:55.6]} 21.
Rad1 {[%clk 0:01:13.3]} 21... Rae8 {[%clk 0:00:48.5]} 22. Rxe6 {[%clk
0:01:12.3]} 22... Rxe6 {[%clk 0:00:49.4]} 23. Rd8+ {[%clk 0:01:11.5]} 23... Re8
{[%clk 0:00:48.8]} 24. Rxe8+ {[%clk 0:00:53.4]} 24... Nxe8 {[%clk 0:00:49.7]}
25. Kf2 {[%clk 0:00:53.5]} 25... Nd6 {[%clk 0:00:45.6]} 26. Nc6 {[%clk
0:00:48.1]} 26... Nc8 {[%clk 0:00:40.3]} 27. g3 {[%clk 0:00:42.9]} 27... f6
{[%clk 0:00:39.7]} 28. Ke3 {[%clk 0:00:42.4]} 28... Kf7 {[%clk 0:00:37.7]} 29.
Kd4 {[%clk 0:00:41.4]} 29... Ke6 {[%clk 0:00:36.4]} 30. Nb4 {[%clk 0:00:32.4]}
30... Bb7 {[%clk 0:00:34.4]} 31. Kxc4 {[%clk 0:00:31.4]} 31... Nd6+ {[%clk
0:00:32]} 32. Kd4 {[%clk 0:00:27.5]} 32... Nf5+ {[%clk 0:00:31.4]} 33. Kd3
{[%clk 0:00:27.7]} 33... h5 {[%clk 0:00:27]} 34. Nb5 {[%clk 0:00:26.5]} 34... a5
{[%clk 0:00:21.3]} 35. Na6 {[%clk 0:00:07.6]} 35... Bxa6 {[%clk 0:00:20.5]} 0-1

[Event "*** Titled Tuesday Blitz"]
[Site "Chess.com"]
[Date "2021.04.06"]
[Round "5"]
[White "TheCount"]
[Black "woodhy"]
[Result "1-0"]
[WhiteElo "2592"]
[BlackElo "2428"]
[TimeControl "180+1"]
[EndTime "10:57:26 PDT"]
[Termination "TheCount won by resignation"]

1. d4 {[%clk 0:02:59.8]} 1... Nf6 {[%clk 0:02:58.3]} 2. c4 {[%clk 0:02:59.4]}
2... e6 {[%clk 0:02:57.3]} 3. Nf3 {[%clk 0:02:59.2]} 3... b6 {[%clk 0:02:56.1]}
4. g3 {[%clk 0:02:59.5]} 4... Bb7 {[%clk 0:02:56.2]} 5. Bg2 {[%clk 0:02:59.9]}
5... Be7 {[%clk 0:02:57.1]} 6. O-O {[%clk 0:03:00]} 6... O-O {[%clk 0:02:57.6]}
7. Nc3 {[%clk 0:03:00.8]} 7... Ne4 {[%clk 0:02:57.3]} 8. Bd2 {[%clk 0:03:00.1]}
8... f5 {[%clk 0:02:57]} 9. Ne5 {[%clk 0:03:00]} 9... Bf6 {[%clk 0:02:47.1]} 10.
Qc2 {[%clk 0:02:54.6]} 10... Nxc3 {[%clk 0:02:43.1]} 11. Bxc3 {[%clk 0:02:50.5]}
11... Bxg2 {[%clk 0:02:44]} 12. Kxg2 {[%clk 0:02:50.8]} 12... d6 {[%clk
0:02:40]} 13. Nd3 {[%clk 0:02:50]} 13... Qe7 {[%clk 0:02:27.9]} 14. Nf4 {[%clk
0:02:47.8]} 14... Nd7 {[%clk 0:01:58.8]} 15. d5 {[%clk 0:02:41.7]} 15... Bxc3
{[%clk 0:01:59.7]} 16. Qxc3 {[%clk 0:02:37]} 16... Nc5 {[%clk 0:01:55.9]} 17.
Qe3 {[%clk 0:01:59.5]} 17... e5 {[%clk 0:01:32.6]} 18. b4 {[%clk 0:01:59.6]}
18... Rae8 {[%clk 0:01:21]} 19. bxc5 {[%clk 0:01:24.7]} 19... exf4 {[%clk
0:01:18.9]} 20. Qxf4 {[%clk 0:01:25.6]} 20... Qxe2 {[%clk 0:01:00.7]} 21. Rfe1
{[%clk 0:01:19.4]} 21... Qg4 {[%clk 0:00:40.3]} 22. c6 {[%clk 0:01:04.6]} 22...
Qxf4 {[%clk 0:00:37.2]} 23. gxf4 {[%clk 0:01:05.5]} 23... Kf7 {[%clk 0:00:32.9]}
24. Kf3 {[%clk 0:01:03.3]} 24... Rxe1 {[%clk 0:00:20.8]} 25. Rxe1 {[%clk
0:01:04.2]} 25... Re8 {[%clk 0:00:21.2]} 26. Re3 {[%clk 0:00:50.5]} 26... Re7
{[%clk 0:00:20.1]} 27. a4 {[%clk 0:00:48.6]} 27... Re8 {[%clk 0:00:18.5]} 28. a5
{[%clk 0:00:25.8]} 28... bxa5 {[%clk 0:00:17.5]} 29. Ra3 {[%clk 0:00:23.8]}
29... Re4 {[%clk 0:00:16.6]} 30. Rxa5 {[%clk 0:00:24]} 30... Rxc4 {[%clk
0:00:15.8]} 31. Rxa7 {[%clk 0:00:24.4]} 31... Rc3+ {[%clk 0:00:15.9]} 32. Ke2
{[%clk 0:00:22.8]} 32... Rc5 {[%clk 0:00:15.8]} 33. Rxc7+ {[%clk 0:00:22.2]}
33... Kf6 {[%clk 0:00:16.7]} 34. Rc8 {[%clk 0:00:19.4]} 34... Rxd5 {[%clk
0:00:17.6]} 35. c7 {[%clk 0:00:18.4]} 35... Rc5 {[%clk 0:00:14.5]} 36. Rf8+
{[%clk 0:00:18.1]} 36... Ke7 {[%clk 0:00:14.3]} 37. c8=Q {[%clk 0:00:19]} 1-0

[Event "*** Titled Tuesday Blitz"]
[Site "Chess.com"]
[Date "2021.04.06"]
[Round "5"]
[White "federicosellitti"]
[Black "BlueWizzard"]
[Result "1-0"]
[WhiteElo "2589"]
[BlackElo "2754"]
[TimeControl "180+1"]
[EndTime "10:57:30 PDT"]
[Termination "federicosellitti won on time"]

1. e4 {[%clk 0:03:00.9]} 1... c6 {[%clk 0:03:00.9]} 2. d4 {[%clk 0:03:00.7]}
2... g6 {[%clk 0:02:59.5]} 3. c3 {[%clk 0:02:49.2]} 3... Bg7 {[%clk 0:02:58.6]}
4. Nf3 {[%clk 0:02:48.9]} 4... d6 {[%clk 0:02:57.9]} 5. Bd3 {[%clk 0:02:48.8]}
5... Nf6 {[%clk 0:02:57.6]} 6. O-O {[%clk 0:02:48.5]} 6... O-O {[%clk
0:02:57.8]} 7. h3 {[%clk 0:02:48.6]} 7... Qc7 {[%clk 0:02:54.6]} 8. Bf4 {[%clk
0:02:38.5]} 8... Nh5 {[%clk 0:02:51.6]} 9. Be3 {[%clk 0:02:34.4]} 9... e5 {[%clk
0:02:50.5]} 10. Nbd2 {[%clk 0:02:28]} 10... Nd7 {[%clk 0:02:48.6]} 11. Re1
{[%clk 0:02:14.5]} 11... Re8 {[%clk 0:02:36.4]} 12. Nf1 {[%clk 0:01:56]} 12...
Nf8 {[%clk 0:02:34.8]} 13. Ng3 {[%clk 0:01:47.6]} 13... Nxg3 {[%clk 0:02:30]}
14. fxg3 {[%clk 0:01:48.5]} 14... exd4 {[%clk 0:02:26.9]} 15. cxd4 {[%clk
0:01:49.4]} 15... c5 {[%clk 0:02:18.4]} 16. Rc1 {[%clk 0:01:30.7]} 16... b6
{[%clk 0:02:15.3]} 17. b3 {[%clk 0:01:11.3]} 17... Bb7 {[%clk 0:02:00.9]} 18. d5
{[%clk 0:01:11.1]} 18... Nd7 {[%clk 0:01:58]} 19. Qd2 {[%clk 0:01:01.4]} 19...
Re7 {[%clk 0:01:49.2]} 20. Rf1 {[%clk 0:00:57.7]} 20... Rae8 {[%clk 0:01:45.7]}
21. Bh6 {[%clk 0:00:47.9]} 21... Bh8 {[%clk 0:01:32.2]} 22. g4 {[%clk
0:00:30.7]} 22... a6 {[%clk 0:01:19.3]} 23. Rce1 {[%clk 0:00:22.7]} 23... b5
{[%clk 0:01:14.6]} 24. Bg5 {[%clk 0:00:22.9]} 24... Nf6 {[%clk 0:00:52.4]} 25.
Qf4 {[%clk 0:00:19.5]} 25... c4 {[%clk 0:00:41.6]} 26. bxc4 {[%clk 0:00:17.4]}
26... bxc4 {[%clk 0:00:42.5]} 27. Bxc4 {[%clk 0:00:16.4]} 27... Rxe4 {[%clk
0:00:37.5]} 28. Bxf6 {[%clk 0:00:08]} 28... Qxc4 {[%clk 0:00:24]} 29. Bxh8
{[%clk 0:00:07.8]} 29... Kxh8 {[%clk 0:00:14.8]} 30. Qf6+ {[%clk 0:00:07]} 30...
Kg8 {[%clk 0:00:14.4]} 31. Ng5 {[%clk 0:00:05.4]} 1-0

[Event "*** Titled Tuesday Blitz"]
[Site "Chess.com"]
[Date "2021.04.06"]
[Round "5"]
[White "yobdc"]
[Black "NikolaGry"]
[Result "0-1"]
[WhiteElo "2520"]
[BlackElo "2710"]
[TimeControl "180+1"]
[EndTime "10:57:30 PDT"]
[Termination "NikolaGry won on time"]

1. d4 {[%clk 0:03:00.9]} 1... d5 {[%clk 0:02:58.8]} 2. Nf3 {[%clk 0:03:00.5]}
2... Nc6 {[%clk 0:02:59.2]} 3. Bf4 {[%clk 0:02:50]} 3... Bg4 {[%clk 0:02:58.8]}
4. e3 {[%clk 0:02:48.9]} 4... e6 {[%clk 0:02:59]} 5. Bb5 {[%clk 0:02:48.6]} 5...
Bd6 {[%clk 0:02:58.8]} 6. Bg3 {[%clk 0:02:39.2]} 6... Ne7 {[%clk 0:02:58.2]} 7.
Nbd2 {[%clk 0:02:37.8]} 7... O-O {[%clk 0:02:53.6]} 8. c3 {[%clk 0:02:26.3]}
8... a6 {[%clk 0:02:52.5]} 9. Bd3 {[%clk 0:02:26.2]} 9... f5 {[%clk 0:02:52]}
10. Qc2 {[%clk 0:02:14.8]} 10... b5 {[%clk 0:02:48]} 11. h3 {[%clk 0:02:02.5]}
11... Bh5 {[%clk 0:02:40.9]} 12. Bxd6 {[%clk 0:01:45.8]} 12... cxd6 {[%clk
0:02:30.6]} 13. g4 {[%clk 0:01:44.2]} 13... Bg6 {[%clk 0:02:29.1]} 14. Nh4
{[%clk 0:01:42.9]} 14... Rc8 {[%clk 0:02:21.1]} 15. Nxg6 {[%clk 0:01:35.5]}
15... hxg6 {[%clk 0:02:18.5]} 16. a3 {[%clk 0:01:29.9]} 16... e5 {[%clk
0:02:17.9]} 17. Qb3 {[%clk 0:01:15]} 17... Na5 {[%clk 0:02:12.1]} 18. Qa2 {[%clk
0:01:11.6]} 18... Nc4 {[%clk 0:02:09.9]} 19. Bxc4 {[%clk 0:00:56.4]} 19... bxc4
{[%clk 0:02:08.1]} 20. O-O-O {[%clk 0:00:51.7]} 20... e4 {[%clk 0:02:02.6]} 21.
Kb1 {[%clk 0:00:50.4]} 21... f4 {[%clk 0:01:59.6]} 22. Ka1 {[%clk 0:00:42.5]}
22... g5 {[%clk 0:01:23.3]} 23. Qb1 {[%clk 0:00:38.4]} 23... Ng6 {[%clk
0:01:19.2]} 24. Rdf1 {[%clk 0:00:33.8]} 24... Nh4 {[%clk 0:01:17.3]} 25. Qd1
{[%clk 0:00:31.7]} 25... Qd7 {[%clk 0:01:08.3]} 26. Qc2 {[%clk 0:00:25.5]} 26...
Rf6 {[%clk 0:00:57]} 27. Re1 {[%clk 0:00:13.1]} 27... Rcf8 {[%clk 0:00:42.7]}
28. Re2 {[%clk 0:00:12.6]} 28... Ng2 {[%clk 0:00:39.5]} 29. Rg1 {[%clk
0:00:11.4]} 29... f3 {[%clk 0:00:39.5]} 30. Ree1 {[%clk 0:00:10.6]} 30... Nxe1
{[%clk 0:00:38.9]} 31. Rxe1 {[%clk 0:00:11.5]} 31... Rh6 {[%clk 0:00:37.9]} 32.
Rh1 {[%clk 0:00:11.3]} 32... Kf7 {[%clk 0:00:36.3]} 33. Qd1 {[%clk 0:00:10.2]}
33... Rfh8 {[%clk 0:00:35.2]} 34. Qf1 {[%clk 0:00:10.1]} 34... Qxg4 {[%clk
0:00:29.4]} 35. Nxc4 {[%clk 0:00:05.2]} 35... Qg2 {[%clk 0:00:23.2]} 36. Nxd6+
{[%clk 0:00:01.9]} 36... Rxd6 {[%clk 0:00:21.8]} 0-1

[Event "*** Titled Tuesday Blitz"]
[Site "Chess.com"]
[Date "2021.04.06"]
[Round "5"]
[White "BvsN"]
[Black "Didici"]
[Result "0-1"]
[WhiteElo "2450"]
[BlackElo "2643"]
[TimeControl "180+1"]
[EndTime "10:57:30 PDT"]
[Termination "Didici won by resignation"]

1. c4 {[%clk 0:03:00.9]} 1... e6 {[%clk 0:02:59.6]} 2. Nc3 {[%clk 0:03:00.8]}
2... d5 {[%clk 0:02:59.8]} 3. d4 {[%clk 0:03:01.1]} 3... Bb4 {[%clk 0:02:58.5]}
4. a3 {[%clk 0:02:59.5]} 4... Bxc3+ {[%clk 0:02:58.2]} 5. bxc3 {[%clk 0:03:00]}
5... c6 {[%clk 0:02:57.7]} 6. f3 {[%clk 0:02:54.5]} 6... dxc4 {[%clk 0:02:56.5]}
7. e4 {[%clk 0:02:53.8]} 7... b5 {[%clk 0:02:54.3]} 8. a4 {[%clk 0:02:54.1]}
8... a6 {[%clk 0:02:52.6]} 9. Ba3 {[%clk 0:02:48.5]} 9... Ne7 {[%clk 0:02:49.3]}
10. f4 {[%clk 0:02:36.3]} 10... Nd7 {[%clk 0:02:38.2]} 11. Nf3 {[%clk
0:02:27.4]} 11... O-O {[%clk 0:02:37.5]} 12. Be2 {[%clk 0:02:27.2]} 12... Nf6
{[%clk 0:02:32.2]} 13. Qc2 {[%clk 0:02:22.7]} 13... Bb7 {[%clk 0:02:31]} 14. e5
{[%clk 0:01:55.6]} 14... Nfd5 {[%clk 0:02:28.8]} 15. Ng5 {[%clk 0:01:54.4]}
15... Ng6 {[%clk 0:02:12.1]} 16. Bxf8 {[%clk 0:01:47.3]} 16... Qxf8 {[%clk
0:02:13]} 17. O-O {[%clk 0:01:32]} 17... c5 {[%clk 0:02:11.3]} 18. axb5 {[%clk
0:01:20.3]} 18... axb5 {[%clk 0:02:05.7]} 19. Rxa8 {[%clk 0:01:19]} 19... Bxa8
{[%clk 0:02:04.4]} 20. Qd2 {[%clk 0:00:40.6]} 20... cxd4 {[%clk 0:01:26]} 21.
Qxd4 {[%clk 0:00:40]} 21... h6 {[%clk 0:01:25.8]} 22. Ne4 {[%clk 0:00:18.2]}
22... Ndxf4 {[%clk 0:01:21.9]} 23. Bf3 {[%clk 0:00:15.8]} 23... Nd3 {[%clk
0:01:10.2]} 24. Nd6 {[%clk 0:00:10.4]} 24... Bxf3 {[%clk 0:00:49.9]} 25. Rxf3
{[%clk 0:00:10.6]} 25... Ngxe5 {[%clk 0:00:49.1]} 26. Rf1 {[%clk 0:00:05.2]}
26... Qb8 {[%clk 0:00:41.6]} 27. Ne4 {[%clk 0:00:03.8]} 27... Ng4 {[%clk
0:00:36.7]} 28. g3 {[%clk 0:00:01.8]} 28... Qa8 {[%clk 0:00:21.1]} 29. Nd6
{[%clk 0:00:01.9]} 29... Qa2 {[%clk 0:00:19.6]} 30. Rf2 {[%clk 0:00:01.1]} 30...
Qxf2+ {[%clk 0:00:17.4]} 31. Qxf2 {[%clk 0:00:01.3]} 31... Ngxf2 {[%clk
0:00:13.6]} 32. Nxb5 {[%clk 0:00:02.2]} 32... Nd1 {[%clk 0:00:13.5]} 33. Nd6
{[%clk 0:00:02.7]} 33... Nxc3 {[%clk 0:00:13.2]} 34. Nxc4 {[%clk 0:00:03.3]}
34... Nd5 {[%clk 0:00:14.1]} 35. Ne5 {[%clk 0:00:03.4]} 35... Nxe5 {[%clk
0:00:14.3]} 0-1

[Event "*** Titled Tuesday Blitz"]
[Site "Chess.com"]
[Date "2021.04.06"]
[Round "5"]
[White "AttackSparrow"]
[Black "Godzillator"]
[Result "1/2-1/2"]
[WhiteElo "2528"]
[BlackElo "2301"]
[TimeControl "180+1"]
[EndTime "10:57:31 PDT"]
[Termination "Game drawn by repetition"]

1. e4 {[%clk 0:03:00.9]} 1... c6 {[%clk 0:02:59]} 2. d4 {[%clk 0:02:59.7]} 2...
d5 {[%clk 0:02:59.5]} 3. exd5 {[%clk 0:03:00.6]} 3... cxd5 {[%clk 0:02:59.5]} 4.
c4 {[%clk 0:03:01.2]} 4... Nf6 {[%clk 0:02:59.5]} 5. Nc3 {[%clk 0:03:01.4]} 5...
e6 {[%clk 0:02:59.7]} 6. Nf3 {[%clk 0:02:56.6]} 6... Bb4 {[%clk 0:02:59.5]} 7.
cxd5 {[%clk 0:02:56]} 7... Nxd5 {[%clk 0:02:59]} 8. Qc2 {[%clk 0:02:54.7]} 8...
Nc6 {[%clk 0:02:58.2]} 9. Bd3 {[%clk 0:02:52.1]} 9... h6 {[%clk 0:02:57.5]} 10.
O-O {[%clk 0:02:50.8]} 10... O-O {[%clk 0:02:56.1]} 11. Re1 {[%clk 0:02:45.6]}
11... Be7 {[%clk 0:02:55.9]} 12. a3 {[%clk 0:02:44.4]} 12... Bf6 {[%clk
0:02:54.2]} 13. Be3 {[%clk 0:02:44.8]} 13... Nxc3 {[%clk 0:02:52.6]} 14. bxc3
{[%clk 0:02:43.5]} 14... b6 {[%clk 0:02:52.3]} 15. Bh7+ {[%clk 0:02:43.4]} 15...
Kh8 {[%clk 0:02:51.8]} 16. Be4 {[%clk 0:02:44.3]} 16... Bb7 {[%clk 0:02:51.6]}
17. Rad1 {[%clk 0:02:43.4]} 17... Rc8 {[%clk 0:02:46.7]} 18. d5 {[%clk
0:02:43.1]} 18... exd5 {[%clk 0:02:46.8]} 19. Bxd5 {[%clk 0:02:43.9]} 19... Qc7
{[%clk 0:02:46.7]} 20. Qe4 {[%clk 0:02:42.1]} 20... Bxc3 {[%clk 0:02:32.6]} 21.
Rf1 {[%clk 0:02:41.2]} 21... Na5 {[%clk 0:02:31.5]} 22. Rc1 {[%clk 0:02:25.2]}
22... Bxd5 {[%clk 0:02:30.6]} 23. Qxd5 {[%clk 0:02:26.1]} 23... Qb7 {[%clk
0:02:30]} 24. Qh5 {[%clk 0:02:23.8]} 24... Kg8 {[%clk 0:02:16.5]} 25. h3 {[%clk
0:02:10.2]} 25... Qe4 {[%clk 0:02:14.3]} 26. Qb5 {[%clk 0:02:01.7]} 26... Bf6
{[%clk 0:02:07.6]} 27. Rcd1 {[%clk 0:02:00.9]} 27... Nc4 {[%clk 0:01:40.7]} 28.
Bc1 {[%clk 0:01:55.2]} 28... Qc6 {[%clk 0:01:34.5]} 29. Qa6 {[%clk 0:01:52.3]}
29... Rc7 {[%clk 0:01:30.2]} 30. Bf4 {[%clk 0:01:50.8]} 30... Qb7 {[%clk
0:01:22.4]} 31. Qb5 {[%clk 0:01:47.8]} 31... Rc5 {[%clk 0:01:22.3]} 32. Qb4
{[%clk 0:01:46.7]} 32... Rfc8 {[%clk 0:01:21.3]} 33. Rfe1 {[%clk 0:01:44.6]}
33... Na5 {[%clk 0:01:18.7]} 34. Be5 {[%clk 0:01:40.3]} 34... Nc6 {[%clk
0:01:17]} 35. Qb2 {[%clk 0:01:35]} 35... Nxe5 {[%clk 0:01:16.6]} 36. Nxe5 {[%clk
0:01:35.9]} 36... Bxe5 {[%clk 0:01:16.4]} 37. Rxe5 {[%clk 0:01:36.8]} 37... Rxe5
{[%clk 0:01:09.2]} 38. Qxe5 {[%clk 0:01:37.7]} 38... a6 {[%clk 0:01:03.8]} 39.
Qf5 {[%clk 0:01:37.2]} 39... Qc6 {[%clk 0:00:51.8]} 40. Rd7 {[%clk 0:01:32.5]}
40... Rf8 {[%clk 0:00:49.4]} 41. Qd3 {[%clk 0:01:32.1]} 41... b5 {[%clk
0:00:48.8]} 42. Rd6 {[%clk 0:01:27.9]} 42... Qc1+ {[%clk 0:00:48.4]} 43. Kh2
{[%clk 0:01:28.3]} 43... Qf4+ {[%clk 0:00:47.6]} 44. Kg1 {[%clk 0:01:28.9]}
44... Rc8 {[%clk 0:00:45.8]} 45. Rd8+ {[%clk 0:01:27.5]} 45... Rxd8 {[%clk
0:00:45.9]} 46. Qxd8+ {[%clk 0:01:28.4]} 46... Kh7 {[%clk 0:00:46.4]} 47. Qd3+
{[%clk 0:01:29.1]} 47... g6 {[%clk 0:00:45.3]} 48. Qd7 {[%clk 0:01:28.3]} 48...
Qf5 {[%clk 0:00:42.3]} 49. Qc6 {[%clk 0:01:24.4]} 49... a5 {[%clk 0:00:41.5]}
50. Qb7 {[%clk 0:01:19.9]} 50... Kg7 {[%clk 0:00:38.7]} 51. Qa7 {[%clk
0:01:18.6]} 51... b4 {[%clk 0:00:37.4]} 52. axb4 {[%clk 0:01:17.6]} 52... axb4
{[%clk 0:00:37.7]} 53. Qd4+ {[%clk 0:01:18.1]} 53... Qf6 {[%clk 0:00:37.1]} 54.
Qxb4 {[%clk 0:01:19]} 54... Qa1+ {[%clk 0:00:37]} 55. Kh2 {[%clk 0:01:19.2]}
55... Qe5+ {[%clk 0:00:37.5]} 56. g3 {[%clk 0:01:19.7]} 56... Qf6 {[%clk
0:00:37.2]} 57. Kg1 {[%clk 0:01:19]} 57... h5 {[%clk 0:00:37.7]} 58. h4 {[%clk
0:01:18.9]} 58... Qf3 {[%clk 0:00:37.8]} 59. Qd4+ {[%clk 0:01:18.3]} 59... Kh7
{[%clk 0:00:37.4]} 60. Qe5 {[%clk 0:01:17.7]} 60... Kg8 {[%clk 0:00:36.8]} 61.
Qe8+ {[%clk 0:01:17.4]} 61... Kh7 {[%clk 0:00:36.1]} 62. Qe5 {[%clk 0:01:18.3]}
62... Kg8 {[%clk 0:00:36.2]} 63. Qg5 {[%clk 0:01:18.2]} 63... Kh7 {[%clk
0:00:36]} 64. Qd2 {[%clk 0:01:17.8]} 64... Kg8 {[%clk 0:00:36]} 65. Qd4 {[%clk
0:01:17.7]} 65... Kh7 {[%clk 0:00:36.2]} 66. Qd8 {[%clk 0:01:17.7]} 66... Kg7
{[%clk 0:00:36.2]} 67. Qe8 {[%clk 0:01:17.8]} 67... Kh7 {[%clk 0:00:36]} 68. Qf8
{[%clk 0:01:17.8]} 68... Qf5 {[%clk 0:00:34.9]} 69. Kg2 {[%clk 0:01:17.5]} 69...
Qe4+ {[%clk 0:00:35]} 70. Kh2 {[%clk 0:01:17.8]} 70... Qf3 {[%clk 0:00:34.8]}
71. Kg1 {[%clk 0:01:18]} 71... Qf5 {[%clk 0:00:35]} 72. Qe7 {[%clk 0:01:17.2]}
72... Kg7 {[%clk 0:00:34.6]} 73. Qe3 {[%clk 0:01:17.5]} 73... Kh7 {[%clk
0:00:34.3]} 74. Qd4 {[%clk 0:01:17.3]} 74... Qf3 {[%clk 0:00:33.2]} 1/2-1/2